[Event "*** Titled Tuesday Blitz"]
[Site "Chess.com"]
[Date "2021.03.16"]
[Round "6"]
[White "VinzentSpitzl"]
[Black "HanSchut"]
[Result "1-0"]
[WhiteElo "2367"]
[BlackElo "2236"]
[TimeControl "180+1"]
[EndTime "11:06:41 PDT"]
[Termination "VinzentSpitzl won by resignation"]

1. c4 {[%clk 0:03:00.9]} 1... Nf6 {[%clk 0:02:59.5]} 2. Nc3 {[%clk 0:02:59.5]}
2... d5 {[%clk 0:02:59.9]} 3. cxd5 {[%clk 0:02:55.8]} 3... Nxd5 {[%clk
0:03:00.8]} 4. Nf3 {[%clk 0:02:55.5]} 4... c5 {[%clk 0:02:58.9]} 5. e4 {[%clk
0:02:51.4]} 5... Nb4 {[%clk 0:02:53.6]} 6. Bc4 {[%clk 0:02:38.2]} 6... Nd3+
{[%clk 0:02:52.5]} 7. Ke2 {[%clk 0:02:31.1]} 7... Nf4+ {[%clk 0:02:52.5]} 8. Kf1
{[%clk 0:02:30.8]} 8... Ne6 {[%clk 0:02:48.1]} 9. d3 {[%clk 0:02:24]} 9... Nc6
{[%clk 0:02:42.1]} 10. Nd5 {[%clk 0:02:14.8]} 10... g6 {[%clk 0:02:29.3]} 11.
Bd2 {[%clk 0:02:12.6]} 11... Bg7 {[%clk 0:02:29]} 12. Bc3 {[%clk 0:02:12.7]}
12... Ned4 {[%clk 0:02:15.1]} 13. Nxd4 {[%clk 0:02:00.1]} 13... cxd4 {[%clk
0:02:11.1]} 14. Bd2 {[%clk 0:01:58.9]} 14... O-O {[%clk 0:02:00]} 15. h4 {[%clk
0:01:58.2]} 15... h5 {[%clk 0:01:56.6]} 16. b4 {[%clk 0:01:45]} 16... Ne5 {[%clk
0:01:43.8]} 17. Rc1 {[%clk 0:01:23]} 17... Nxc4 {[%clk 0:01:26]} 18. Rxc4 {[%clk
0:01:22.3]} 18... Be6 {[%clk 0:01:21.1]} 19. Qf3 {[%clk 0:00:57.6]} 19... Bxd5
{[%clk 0:01:02.5]} 20. exd5 {[%clk 0:00:57.5]} 20... Qd7 {[%clk 0:00:58.5]} 21.
g3 {[%clk 0:00:46.5]} 21... Rfd8 {[%clk 0:00:54.8]} 22. Kg2 {[%clk 0:00:46.4]}
22... Qxd5 {[%clk 0:00:49.8]} 23. Qxd5 {[%clk 0:00:46.5]} 23... Rxd5 {[%clk
0:00:50.7]} 24. Rc7 {[%clk 0:00:47]} 24... Re5 {[%clk 0:00:45.7]} 25. Re1 {[%clk
0:00:41.4]} 25... Rxe1 {[%clk 0:00:39.9]} 26. Bxe1 {[%clk 0:00:42.3]} 26... Bf6
{[%clk 0:00:37.2]} 27. f4 {[%clk 0:00:37]} 27... b6 {[%clk 0:00:35.5]} 28. Kf3
{[%clk 0:00:36.8]} 28... a5 {[%clk 0:00:35.4]} 29. b5 {[%clk 0:00:36.1]} 29...
Rb8 {[%clk 0:00:26]} 30. Ke4 {[%clk 0:00:33.4]} 30... Kf8 {[%clk 0:00:25.9]} 31.
Rc6 {[%clk 0:00:29.3]} 31... Ke8 {[%clk 0:00:24.8]} 32. a4 {[%clk 0:00:26.9]}
32... Kd7 {[%clk 0:00:24.8]} 33. Bf2 {[%clk 0:00:24.3]} 33... Rc8 {[%clk
0:00:12.9]} 34. Rxb6 {[%clk 0:00:21.5]} 34... Rc2 {[%clk 0:00:11.5]} 35. Bxd4
{[%clk 0:00:10.7]} 35... Bxd4 {[%clk 0:00:11.6]} 36. Kxd4 {[%clk 0:00:10.6]}
36... Ra2 {[%clk 0:00:12.2]} 37. Kd5 {[%clk 0:00:07.6]} 37... Rxa4 {[%clk
0:00:10.7]} 38. Rb7+ {[%clk 0:00:07.9]} 38... Kd8 {[%clk 0:00:10.4]} 39. Kc6
{[%clk 0:00:07.4]} 39... e6 {[%clk 0:00:09.1]} 40. Rxf7 {[%clk 0:00:07.1]} 40...
Rd4 {[%clk 0:00:07.8]} 41. b6 {[%clk 0:00:07.1]} 41... Ke8 {[%clk 0:00:08]} 42.
Rc7 {[%clk 0:00:05.3]} 42... a4 {[%clk 0:00:08.2]} 43. b7 {[%clk 0:00:05.6]}
43... Rb4 {[%clk 0:00:07.9]} 44. Rc8+ {[%clk 0:00:05.9]} 44... Ke7 {[%clk
0:00:08.5]} 45. b8=Q {[%clk 0:00:06.2]} 45... Rxb8 {[%clk 0:00:08.7]} 46. Rxb8
{[%clk 0:00:07.1]} 1-0

[Event "*** Titled Tuesday Blitz"]
[Site "Chess.com"]
[Date "2021.03.16"]
[Round "6"]
[White "Omk124"]
[Black "juli2512"]
[Result "1-0"]
[WhiteElo "2559"]
[BlackElo "2216"]
[TimeControl "180+1"]
[EndTime "11:06:42 PDT"]
[Termination "Omk124 won by resignation"]

1. e4 {[%clk 0:03:00.9]} 1... c5 {[%clk 0:02:59]} 2. Nf3 {[%clk 0:03:00]} 2...
d6 {[%clk 0:02:59]} 3. d4 {[%clk 0:02:59.9]} 3... cxd4 {[%clk 0:02:59.2]} 4.
Nxd4 {[%clk 0:03:00.8]} 4... Nf6 {[%clk 0:02:59.4]} 5. Nc3 {[%clk 0:03:00.8]}
5... Nc6 {[%clk 0:02:59.8]} 6. g3 {[%clk 0:02:59.2]} 6... e5 {[%clk 0:02:51.8]}
7. Nxc6 {[%clk 0:02:46.3]} 7... bxc6 {[%clk 0:02:51.3]} 8. Bg2 {[%clk
0:02:47.2]} 8... Be7 {[%clk 0:02:50.5]} 9. O-O {[%clk 0:02:47.1]} 9... Rb8
{[%clk 0:02:38]} 10. b3 {[%clk 0:02:46.5]} 10... O-O {[%clk 0:02:37.4]} 11. Ba3
{[%clk 0:02:45]} 11... Qa5 {[%clk 0:02:27.8]} 12. Na4 {[%clk 0:02:43.5]} 12...
Rd8 {[%clk 0:02:26.5]} 13. c4 {[%clk 0:02:42.3]} 13... Be6 {[%clk 0:02:20.4]}
14. Qe2 {[%clk 0:02:39]} 14... Bf8 {[%clk 0:02:14.5]} 15. Rfd1 {[%clk
0:02:36.3]} 15... Ne8 {[%clk 0:01:57.1]} 16. Rac1 {[%clk 0:02:34.1]} 16... Rbc8
{[%clk 0:01:56.2]} 17. h3 {[%clk 0:02:25]} 17... f5 {[%clk 0:01:53.6]} 18. exf5
{[%clk 0:02:21.6]} 18... Bxf5 {[%clk 0:01:53.7]} 19. c5 {[%clk 0:02:19.9]} 19...
d5 {[%clk 0:01:28.6]} 20. Qxe5 {[%clk 0:02:18.9]} 20... Bg6 {[%clk 0:01:24.2]}
21. Rd4 {[%clk 0:02:01.4]} 21... Nf6 {[%clk 0:01:22.4]} 22. Qe6+ {[%clk
0:01:40.5]} 22... Kh8 {[%clk 0:01:20.4]} 23. Bb4 {[%clk 0:01:28.9]} 23... Qc7
{[%clk 0:01:16.6]} 24. Qe1 {[%clk 0:01:28.1]} 24... Re8 {[%clk 0:01:13.7]} 25.
Qd1 {[%clk 0:01:24.6]} 25... Ne4 {[%clk 0:01:02.5]} 26. Bd2 {[%clk 0:01:05.9]}
26... Qe5 {[%clk 0:00:52.7]} 27. Bf4 {[%clk 0:01:04.4]} 27... Qe6 {[%clk
0:00:40.9]} 28. Bf3 {[%clk 0:00:48.6]} 28... Be7 {[%clk 0:00:35.8]} 29. Qf1
{[%clk 0:00:34.6]} 29... Bf5 {[%clk 0:00:29.8]} 30. Kh2 {[%clk 0:00:26.7]} 30...
Bf6 {[%clk 0:00:28.3]} 31. Rdd1 {[%clk 0:00:24.8]} 31... g5 {[%clk 0:00:20.6]}
32. Be3 {[%clk 0:00:22.9]} 32... g4 {[%clk 0:00:18.9]} 33. hxg4 {[%clk
0:00:20.6]} 33... Bxg4 {[%clk 0:00:19]} 34. Qg2 {[%clk 0:00:20.4]} 34... Rg8
{[%clk 0:00:17.7]} 35. Bxe4 {[%clk 0:00:19.8]} 35... dxe4 {[%clk 0:00:17.2]} 36.
Rd2 {[%clk 0:00:19.6]} 36... Bf3 {[%clk 0:00:16.9]} 37. Qh3 {[%clk 0:00:19.6]}
37... Qxh3+ {[%clk 0:00:15.9]} 38. Kxh3 {[%clk 0:00:20.5]} 38... Rg6 {[%clk
0:00:16.4]} 39. Rd6 {[%clk 0:00:17.6]} 39... Rcg8 {[%clk 0:00:16.6]} 40. Re1
{[%clk 0:00:09.1]} 40... Bg5 {[%clk 0:00:16.7]} 41. Bd4+ {[%clk 0:00:09.3]}
41... Bf6 {[%clk 0:00:16.1]} 42. Bxf6+ {[%clk 0:00:08.9]} 42... Rxf6 {[%clk
0:00:16.4]} 43. Rxf6 {[%clk 0:00:09.8]} 43... Kg7 {[%clk 0:00:16.7]} 44. Rf4
{[%clk 0:00:09.6]} 44... Kg6 {[%clk 0:00:15.5]} 45. Rexe4 {[%clk 0:00:08.9]}
45... Bxe4 {[%clk 0:00:15]} 46. Rg4+ {[%clk 0:00:08.9]} 1-0

[Event "*** Titled Tuesday Blitz"]
[Site "Chess.com"]
[Date "2021.03.16"]
[Round "6"]
[White "Nesty_Javi_Chess"]
[Black "mbachez"]
[Result "1-0"]
[WhiteElo "2636"]
[BlackElo "2488"]
[TimeControl "180+1"]
[EndTime "11:06:45 PDT"]
[Termination "Nesty_Javi_Chess won by resignation"]

1. e4 {[%clk 0:03:00.9]} 1... e6 {[%clk 0:02:58.4]} 2. d4 {[%clk 0:02:59.1]}
2... d5 {[%clk 0:02:58.1]} 3. Nd2 {[%clk 0:02:58.1]} 3... h6 {[%clk 0:02:56.7]}
4. Ngf3 {[%clk 0:02:54.2]} 4... Nf6 {[%clk 0:02:56.6]} 5. e5 {[%clk 0:02:53.9]}
5... Nfd7 {[%clk 0:02:56.7]} 6. c3 {[%clk 0:02:54.8]} 6... c5 {[%clk 0:02:56.1]}
7. Bd3 {[%clk 0:02:52]} 7... Nc6 {[%clk 0:02:56.1]} 8. O-O {[%clk 0:02:51.6]}
8... g5 {[%clk 0:02:55.5]} 9. Bb5 {[%clk 0:02:51.2]} 9... g4 {[%clk 0:02:54.1]}
10. Ne1 {[%clk 0:02:47.6]} 10... cxd4 {[%clk 0:02:54.1]} 11. Bxc6 {[%clk
0:02:47.3]} 11... bxc6 {[%clk 0:02:53.2]} 12. cxd4 {[%clk 0:02:10.6]} 12... Ba6
{[%clk 0:02:49.8]} 13. Qxg4 {[%clk 0:02:10.1]} 13... c5 {[%clk 0:02:42.5]} 14.
Nef3 {[%clk 0:02:04.8]} 14... Bxf1 {[%clk 0:02:39.8]} 15. Nxf1 {[%clk
0:02:05.7]} 15... Be7 {[%clk 0:02:32.1]} 16. Be3 {[%clk 0:01:53.7]} 16... c4
{[%clk 0:02:29.2]} 17. Ng3 {[%clk 0:01:47.3]} 17... Qb6 {[%clk 0:02:14.2]} 18.
b3 {[%clk 0:01:44.9]} 18... cxb3 {[%clk 0:02:04.5]} 19. axb3 {[%clk 0:01:45.8]}
19... O-O-O {[%clk 0:02:03.9]} 20. Nd2 {[%clk 0:01:37.4]} 20... Bg5 {[%clk
0:01:53.5]} 21. f4 {[%clk 0:01:27.3]} 21... Be7 {[%clk 0:01:39.4]} 22. Qe2
{[%clk 0:01:24]} 22... Kb8 {[%clk 0:01:37.6]} 23. f5 {[%clk 0:01:20]} 23... Bg5
{[%clk 0:01:35.4]} 24. Bf2 {[%clk 0:01:14.3]} 24... Rc8 {[%clk 0:01:34.8]} 25.
Nf3 {[%clk 0:01:10.9]} 25... Rc1+ {[%clk 0:01:30.2]} 26. Rxc1 {[%clk 0:01:08.8]}
26... Bxc1 {[%clk 0:01:31.1]} 27. fxe6 {[%clk 0:00:54.4]} 27... fxe6 {[%clk
0:01:30.3]} 28. Qd3 {[%clk 0:00:53.4]} 28... Rc8 {[%clk 0:01:28.9]} 29. h4
{[%clk 0:00:49.4]} 29... Qc6 {[%clk 0:01:20.3]} 30. Qg6 {[%clk 0:00:42.7]} 30...
Nb6 {[%clk 0:01:10.4]} 31. Nh5 {[%clk 0:00:37.3]} 31... Qc2 {[%clk 0:00:45]} 32.
Qxe6 {[%clk 0:00:35.3]} 32... Qxb3 {[%clk 0:00:44.6]} 33. Qd6+ {[%clk
0:00:32.5]} 33... Kb7 {[%clk 0:00:43.8]} 34. e6 {[%clk 0:00:23.4]} 34... Rc6
{[%clk 0:00:43.6]} 35. Qe5 {[%clk 0:00:18.6]} 35... Qb5 {[%clk 0:00:24.7]} 36.
e7 {[%clk 0:00:16.9]} 36... Rc8 {[%clk 0:00:24.4]} 37. Nf6 {[%clk 0:00:15.5]}
37... Re8 {[%clk 0:00:16.8]} 38. Nxe8 {[%clk 0:00:11.2]} 38... Qxe8 {[%clk
0:00:15.7]} 39. Qd6 {[%clk 0:00:10.8]} 39... Bd2 {[%clk 0:00:09.7]} 40. Qd8
{[%clk 0:00:10.2]} 1-0

[Event "*** Titled Tuesday Blitz"]
[Site "Chess.com"]
[Date "2021.03.16"]
[Round "6"]
[White "ViktoriyaTarasova"]
[Black "VladaSviridova"]
[Result "1-0"]
[WhiteElo "2353"]
[BlackElo "2221"]
[TimeControl "180+1"]
[EndTime "11:06:47 PDT"]
[Termination "ViktoriyaTarasova won on time"]

1. d4 {[%clk 0:03:00.9]} 1... d5 {[%clk 0:03:00.2]} 2. c4 {[%clk 0:03:01.1]}
2... c6 {[%clk 0:03:00.6]} 3. Nf3 {[%clk 0:03:00.6]} 3... Nf6 {[%clk 0:03:00.9]}
4. Nc3 {[%clk 0:03:00.3]} 4... dxc4 {[%clk 0:03:01.4]} 5. a4 {[%clk 0:02:59.7]}
5... Bf5 {[%clk 0:03:01.6]} 6. Ne5 {[%clk 0:02:59.9]} 6... Nbd7 {[%clk
0:03:01.8]} 7. Nxc4 {[%clk 0:03:00.3]} 7... Qc7 {[%clk 0:03:02.5]} 8. g3 {[%clk
0:03:00.5]} 8... e5 {[%clk 0:03:02.8]} 9. dxe5 {[%clk 0:03:00.9]} 9... Nxe5
{[%clk 0:03:03.2]} 10. Bf4 {[%clk 0:03:01.2]} 10... Nfd7 {[%clk 0:03:03.5]} 11.
Bg2 {[%clk 0:03:01.6]} 11... g5 {[%clk 0:03:03.7]} 12. Ne3 {[%clk 0:03:01.5]}
12... gxf4 {[%clk 0:03:02.5]} 13. Nxf5 {[%clk 0:03:02.1]} 13... O-O-O {[%clk
0:03:02.7]} 14. Qc2 {[%clk 0:03:01.7]} 14... Nc5 {[%clk 0:02:38.9]} 15. O-O
{[%clk 0:02:21]} 15... fxg3 {[%clk 0:02:38.6]} 16. hxg3 {[%clk 0:02:18.5]} 16...
a5 {[%clk 0:02:34.8]} 17. Ne4 {[%clk 0:02:15]} 17... Nxe4 {[%clk 0:02:08.2]} 18.
Qxe4 {[%clk 0:02:14]} 18... h5 {[%clk 0:02:07.4]} 19. Rfd1 {[%clk 0:02:07.1]}
19... Bc5 {[%clk 0:01:46.2]} 20. e3 {[%clk 0:02:02.9]} 20... Kb8 {[%clk
0:01:38.3]} 21. Rac1 {[%clk 0:02:02.2]} 21... Bb4 {[%clk 0:01:34.8]} 22. Rd4
{[%clk 0:01:40.2]} 22... Rxd4 {[%clk 0:01:28.3]} 23. exd4 {[%clk 0:01:38.3]}
23... Ng6 {[%clk 0:01:12]} 24. d5 {[%clk 0:01:37.5]} 24... h4 {[%clk 0:00:51.9]}
25. dxc6 {[%clk 0:01:29.2]} 25... hxg3 {[%clk 0:00:51.7]} 26. Nxg3 {[%clk
0:01:25.8]} 26... Rh4 {[%clk 0:00:19.3]} 27. Qe8+ {[%clk 0:01:19.3]} 27... Ka7
{[%clk 0:00:19.7]} 28. Qe3+ {[%clk 0:00:55.3]} 28... b6 {[%clk 0:00:18.2]} 29.
Rd1 {[%clk 0:00:54.8]} 29... Ne5 {[%clk 0:00:15.7]} 30. Qg5 {[%clk 0:00:39.1]}
30... Rc4 {[%clk 0:00:11.1]} 31. Qd8 {[%clk 0:00:23.6]} 31... Qxd8 {[%clk
0:00:10.3]} 32. Rxd8 {[%clk 0:00:24.3]} 32... Nxc6 {[%clk 0:00:10.7]} 33. Rd7+
{[%clk 0:00:23.8]} 33... Kb8 {[%clk 0:00:10.1]} 34. Rxf7 {[%clk 0:00:22.4]}
34... Rc1+ {[%clk 0:00:08.9]} 35. Kh2 {[%clk 0:00:21.7]} 35... Ne5 {[%clk
0:00:08.9]} 36. Rf5 {[%clk 0:00:20.5]} 36... Ng4+ {[%clk 0:00:08.5]} 37. Kh3
{[%clk 0:00:20.9]} 37... Nh6 {[%clk 0:00:07.3]} 38. Rf6 {[%clk 0:00:19.6]} 38...
Bd2 {[%clk 0:00:05.6]} 39. Nf5 {[%clk 0:00:16.6]} 39... Nxf5 {[%clk 0:00:05.1]}
40. Rxf5 {[%clk 0:00:17.2]} 40... Rc2 {[%clk 0:00:05]} 41. Rf8+ {[%clk
0:00:16.4]} 41... Kc7 {[%clk 0:00:05.3]} 42. Rf7+ {[%clk 0:00:17.1]} 42... Kd6
{[%clk 0:00:05.5]} 43. Rf6+ {[%clk 0:00:16.7]} 43... Kc7 {[%clk 0:00:04.2]} 44.
b3 {[%clk 0:00:16.6]} 44... Bb4 {[%clk 0:00:03.1]} 45. Bd5 {[%clk 0:00:15.3]}
45... Bc5 {[%clk 0:00:02.4]} 46. Kg2 {[%clk 0:00:15]} 46... Rb2 {[%clk
0:00:01.9]} 47. Bc4 {[%clk 0:00:15]} 1-0

[Event "*** Titled Tuesday Blitz"]
[Site "Chess.com"]
[Date "2021.03.16"]
[Round "6"]
[White "NTBT_DHS"]
[Black "mbojan"]
[Result "1-0"]
[WhiteElo "2799"]
[BlackElo "2655"]
[TimeControl "180+1"]
[EndTime "11:06:48 PDT"]
[Termination "NTBT_DHS won by resignation"]

1. d4 {[%clk 0:03:00.9]} 1... g6 {[%clk 0:03:00.9]} 2. Nc3 {[%clk 0:02:58]} 2...
Bg7 {[%clk 0:03:00.8]} 3. e4 {[%clk 0:02:58.6]} 3... d6 {[%clk 0:03:01.3]} 4.
Bg5 {[%clk 0:02:57.9]} 4... a6 {[%clk 0:03:00.3]} 5. a4 {[%clk 0:02:56.1]} 5...
Nc6 {[%clk 0:02:58.3]} 6. d5 {[%clk 0:02:44.5]} 6... Ne5 {[%clk 0:02:55.2]} 7.
h3 {[%clk 0:02:44.4]} 7... Nf6 {[%clk 0:02:50]} 8. f4 {[%clk 0:02:42.8]} 8...
Ned7 {[%clk 0:02:48.2]} 9. g4 {[%clk 0:02:40.1]} 9... h6 {[%clk 0:02:40.8]} 10.
Bh4 {[%clk 0:02:38.3]} 10... g5 {[%clk 0:02:40.9]} 11. fxg5 {[%clk 0:02:32.3]}
11... hxg5 {[%clk 0:02:41.8]} 12. Bxg5 {[%clk 0:02:32.8]} 12... Ne5 {[%clk
0:02:41.5]} 13. Bg2 {[%clk 0:02:33.1]} 13... c5 {[%clk 0:02:02.6]} 14. Nf3
{[%clk 0:02:13.8]} 14... Nfd7 {[%clk 0:02:02.1]} 15. Nd2 {[%clk 0:02:08.4]}
15... Qb6 {[%clk 0:01:46.1]} 16. Ra2 {[%clk 0:01:54.4]} 16... Qb4 {[%clk
0:01:26.1]} 17. Qe2 {[%clk 0:01:49.7]} 17... c4 {[%clk 0:01:08.4]} 18. Be3
{[%clk 0:01:44.9]} 18... Nc5 {[%clk 0:01:05.5]} 19. O-O {[%clk 0:01:32.5]} 19...
Bd7 {[%clk 0:00:39.3]} 20. Qf2 {[%clk 0:01:18]} 20... Rc8 {[%clk 0:00:34.9]} 21.
Nf3 {[%clk 0:01:09.6]} 21... Rf8 {[%clk 0:00:11.4]} 22. Nd4 {[%clk 0:01:01.7]}
22... Qb6 {[%clk 0:00:05.5]} 23. Nf5 {[%clk 0:00:44.7]} 23... Bxf5 {[%clk
0:00:05.6]} 24. Qxf5 {[%clk 0:00:45]} 24... Qc7 {[%clk 0:00:05.9]} 25. Raa1
{[%clk 0:00:32]} 25... Ncd7 {[%clk 0:00:05.2]} 26. h4 {[%clk 0:00:23.9]} 26...
Ng6 {[%clk 0:00:04.2]} 27. Bg5 {[%clk 0:00:13.2]} 27... Bf6 {[%clk 0:00:02.1]}
28. h5 {[%clk 0:00:11.9]} 28... Nh4 {[%clk 0:00:02]} 29. Qf4 {[%clk 0:00:09.2]}
29... Ne5 {[%clk 0:00:01.1]} 30. Bxf6 {[%clk 0:00:07.9]} 30... exf6 {[%clk
0:00:02]} 31. Qxf6 {[%clk 0:00:07.8]} 31... Qe7 {[%clk 0:00:02.4]} 32. Qxe7+
{[%clk 0:00:07.2]} 32... Kxe7 {[%clk 0:00:03.3]} 33. Bh3 {[%clk 0:00:07.8]}
33... Rg8 {[%clk 0:00:03.5]} 34. Rf4 {[%clk 0:00:06]} 34... Nhf3+ {[%clk
0:00:03.6]} 35. Kg2 {[%clk 0:00:04.6]} 35... Ng5 {[%clk 0:00:04.1]} 36. Ne2
{[%clk 0:00:04.6]} 36... b5 {[%clk 0:00:03.9]} 37. axb5 {[%clk 0:00:04.6]} 37...
axb5 {[%clk 0:00:04.8]} 38. Ra7+ {[%clk 0:00:05]} 38... Kf8 {[%clk 0:00:05.3]}
39. Nd4 {[%clk 0:00:05.3]} 39... Rb8 {[%clk 0:00:04.7]} 40. Ne6+ {[%clk
0:00:05.7]} 40... Nxe6 {[%clk 0:00:04.8]} 41. dxe6 {[%clk 0:00:06.6]} 41... Rg7
{[%clk 0:00:05.3]} 42. h6 {[%clk 0:00:06.9]} 42... Rh7 {[%clk 0:00:05.4]} 43. g5
{[%clk 0:00:07.6]} 43... Kg8 {[%clk 0:00:05.6]} 44. exf7+ {[%clk 0:00:07.7]}
44... Kh8 {[%clk 0:00:06]} 45. f8=Q+ {[%clk 0:00:07.5]} 1-0

[Event "*** Titled Tuesday Blitz"]
[Site "Chess.com"]
[Date "2021.03.16"]
[Round "6"]
[White "Pantata007"]
[Black "guillembaches"]
[Result "0-1"]
[WhiteElo "2338"]
[BlackElo "2476"]
[TimeControl "180+1"]
[EndTime "11:06:51 PDT"]
[Termination "guillembaches won by resignation"]

1. d4 {[%clk 0:03:00.9]} 1... Nf6 {[%clk 0:02:59.3]} 2. c4 {[%clk 0:03:00.8]}
2... e6 {[%clk 0:02:59.6]} 3. Nc3 {[%clk 0:03:01.1]} 3... Bb4 {[%clk 0:02:59.9]}
4. e3 {[%clk 0:03:01.5]} 4... O-O {[%clk 0:02:59.5]} 5. Ne2 {[%clk 0:03:01]}
5... c6 {[%clk 0:02:59.6]} 6. a3 {[%clk 0:02:57.9]} 6... Ba5 {[%clk 0:03:00]} 7.
Qc2 {[%clk 0:02:57.8]} 7... d5 {[%clk 0:02:57.9]} 8. Ng3 {[%clk 0:02:58.1]} 8...
Nbd7 {[%clk 0:02:50.8]} 9. Be2 {[%clk 0:02:58.2]} 9... dxc4 {[%clk 0:02:34.4]}
10. Bxc4 {[%clk 0:02:59.1]} 10... e5 {[%clk 0:02:34.5]} 11. O-O {[%clk
0:02:58.7]} 11... exd4 {[%clk 0:02:32.3]} 12. exd4 {[%clk 0:02:59.6]} 12... Nb6
{[%clk 0:02:31.5]} 13. Bb3 {[%clk 0:02:45.5]} 13... Qxd4 {[%clk 0:02:23.1]} 14.
Bg5 {[%clk 0:02:42.3]} 14... Qe5 {[%clk 0:02:02.3]} 15. f4 {[%clk 0:02:32.7]}
15... Qc5+ {[%clk 0:01:53.1]} 16. Kh1 {[%clk 0:02:32.9]} 16... Ng4 {[%clk
0:01:48.6]} 17. Rae1 {[%clk 0:02:23.8]} 17... Bf5 {[%clk 0:01:38.1]} 18. Qe2
{[%clk 0:02:06.1]} 18... Bxc3 {[%clk 0:01:24.4]} 19. Be7 {[%clk 0:01:47.4]}
19... Qb5 {[%clk 0:01:12.9]} 20. Qxb5 {[%clk 0:01:42.2]} 20... cxb5 {[%clk
0:01:13.8]} 21. Nxf5 {[%clk 0:01:33]} 21... Bxe1 {[%clk 0:01:10.3]} 22. Bxf8
{[%clk 0:01:32.4]} 22... Kxf8 {[%clk 0:01:05]} 23. Rxe1 {[%clk 0:01:28.5]} 23...
Nc4 {[%clk 0:01:00.1]} 24. Bxc4 {[%clk 0:01:24.1]} 24... bxc4 {[%clk 0:00:59.6]}
25. Nd6 {[%clk 0:01:25]} 25... Nf2+ {[%clk 0:00:49.6]} 26. Kg1 {[%clk 0:01:24]}
26... Nd3 {[%clk 0:00:49.8]} 27. Rb1 {[%clk 0:01:15.4]} 27... Nxf4 {[%clk
0:00:44.7]} 28. Nxc4 {[%clk 0:01:05.2]} 28... Rd8 {[%clk 0:00:44.2]} 29. Rf1
{[%clk 0:01:02.5]} 29... Ne2+ {[%clk 0:00:40.4]} 30. Kf2 {[%clk 0:01:02.2]}
30... Nd4 {[%clk 0:00:40.4]} 31. Ke3 {[%clk 0:00:52]} 31... Ke7 {[%clk
0:00:37.5]} 32. Ke4 {[%clk 0:00:45]} 32... Ne6 {[%clk 0:00:33.8]} 33. Na5 {[%clk
0:00:40.1]} 33... Rd7 {[%clk 0:00:30.9]} 34. b4 {[%clk 0:00:36.3]} 34... g6
{[%clk 0:00:29.9]} 35. g4 {[%clk 0:00:32.4]} 35... h6 {[%clk 0:00:25.6]} 36. Ke3
{[%clk 0:00:28.1]} 36... Ng5 {[%clk 0:00:20.4]} 37. h4 {[%clk 0:00:25.9]} 37...
Ne6 {[%clk 0:00:20.3]} 38. Rf2 {[%clk 0:00:16.3]} 38... Rc7 {[%clk 0:00:20.5]}
39. Rd2 {[%clk 0:00:13.7]} 39... b6 {[%clk 0:00:20.2]} 40. Nb3 {[%clk
0:00:13.2]} 40... Rc3+ {[%clk 0:00:20]} 41. Rd3 {[%clk 0:00:13.6]} 41... Rxd3+
{[%clk 0:00:20.1]} 42. Kxd3 {[%clk 0:00:14.5]} 42... Nf4+ {[%clk 0:00:20.3]} 43.
Ke4 {[%clk 0:00:12.8]} 43... Ng2 {[%clk 0:00:20.1]} 44. h5 {[%clk 0:00:11.3]}
44... gxh5 {[%clk 0:00:19.2]} 45. gxh5 {[%clk 0:00:12.2]} 45... Kf6 {[%clk
0:00:19.3]} 46. Nd4 {[%clk 0:00:11.3]} 46... Kg5 {[%clk 0:00:19.1]} 47. Nc6
{[%clk 0:00:11]} 47... Kxh5 {[%clk 0:00:18]} 48. Nxa7 {[%clk 0:00:11]} 48... Kg4
{[%clk 0:00:18.3]} 49. Nc8 {[%clk 0:00:09.5]} 49... h5 {[%clk 0:00:18.4]} 50.
Nxb6 {[%clk 0:00:09.2]} 50... f5+ {[%clk 0:00:18.6]} 51. Kd3 {[%clk 0:00:08.3]}
51... h4 {[%clk 0:00:19]} 52. Nd5 {[%clk 0:00:08]} 52... h3 {[%clk 0:00:18.2]}
0-1

[Event "*** Titled Tuesday Blitz"]
[Site "Chess.com"]
[Date "2021.03.16"]
[Round "6"]
[White "akanga001"]
[Black "pavelalexandru07"]
[Result "0-1"]
[WhiteElo "1971"]
[BlackElo "2294"]
[TimeControl "180+1"]
[EndTime "11:06:54 PDT"]
[Termination "pavelalexandru07 won by resignation"]

1. d4 {[%clk 0:03:00.9]} 1... Nf6 {[%clk 0:02:56.9]} 2. Nf3 {[%clk 0:02:57.2]}
2... c5 {[%clk 0:02:55.7]} 3. c3 {[%clk 0:02:55.6]} 3... e6 {[%clk 0:02:54.1]}
4. Bg5 {[%clk 0:02:55.4]} 4... h6 {[%clk 0:02:51]} 5. Bh4 {[%clk 0:02:54.4]}
5... b6 {[%clk 0:02:41.7]} 6. Nbd2 {[%clk 0:02:53.3]} 6... Bb7 {[%clk
0:02:40.9]} 7. e3 {[%clk 0:02:53.4]} 7... d6 {[%clk 0:02:39.5]} 8. Bd3 {[%clk
0:02:53.2]} 8... Be7 {[%clk 0:02:39.2]} 9. O-O {[%clk 0:02:52.8]} 9... Nbd7
{[%clk 0:02:38.8]} 10. Re1 {[%clk 0:02:52.7]} 10... O-O {[%clk 0:02:37.9]} 11.
a4 {[%clk 0:02:51.9]} 11... Qc7 {[%clk 0:01:48.5]} 12. a5 {[%clk 0:02:51.2]}
12... Rfe8 {[%clk 0:01:46.5]} 13. a6 {[%clk 0:02:50.6]} 13... Bc6 {[%clk
0:01:46.6]} 14. b4 {[%clk 0:02:35.4]} 14... Nf8 {[%clk 0:01:35]} 15. b5 {[%clk
0:02:34.2]} 15... Bd7 {[%clk 0:01:34.7]} 16. c4 {[%clk 0:02:27]} 16... e5 {[%clk
0:01:27.7]} 17. dxe5 {[%clk 0:02:12.8]} 17... dxe5 {[%clk 0:01:26.5]} 18. Ne4
{[%clk 0:02:08.6]} 18... Nxe4 {[%clk 0:01:25.3]} 19. Bxe4 {[%clk 0:02:06.4]}
19... Rad8 {[%clk 0:01:18.8]} 20. Bd5 {[%clk 0:02:05.2]} 20... e4 {[%clk
0:00:59.5]} 21. Bxe7 {[%clk 0:02:03.9]} 21... Rxe7 {[%clk 0:00:59.1]} 22. Nd2
{[%clk 0:01:55.5]} 22... Bf5 {[%clk 0:00:46.2]} 23. Qc2 {[%clk 0:01:48.7]} 23...
Qe5 {[%clk 0:00:45]} 24. Rad1 {[%clk 0:01:34.2]} 24... Nh7 {[%clk 0:00:45]} 25.
Nf1 {[%clk 0:01:30.1]} 25... Ree8 {[%clk 0:00:25]} 26. Ng3 {[%clk 0:01:29.1]}
26... Nf6 {[%clk 0:00:23.4]} 27. Bc6 {[%clk 0:01:20.3]} 27... Rf8 {[%clk
0:00:21.4]} 28. Nxf5 {[%clk 0:01:13]} 28... Qxf5 {[%clk 0:00:21.5]} 29. Rxd8
{[%clk 0:01:12]} 29... Rxd8 {[%clk 0:00:21.2]} 30. Rd1 {[%clk 0:01:12.4]} 30...
Rxd1+ {[%clk 0:00:12.3]} 31. Qxd1 {[%clk 0:01:13.3]} 31... Qe5 {[%clk
0:00:11.7]} 32. Qd8+ {[%clk 0:01:11.8]} 32... Kh7 {[%clk 0:00:11.4]} 33. g3
{[%clk 0:01:11.1]} 33... h5 {[%clk 0:00:06.9]} 34. Bd5 {[%clk 0:00:53]} 34...
Kg6 {[%clk 0:00:04.7]} 35. h4 {[%clk 0:00:42.3]} 35... Qf5 {[%clk 0:00:02.9]}
36. Qc7 {[%clk 0:00:32.7]} 36... Qh3 {[%clk 0:00:02.2]} 37. Qf4 {[%clk
0:00:20.5]} 37... Qg4 {[%clk 0:00:01.6]} 38. Qxg4+ {[%clk 0:00:16.9]} 38... hxg4
{[%clk 0:00:02]} 39. Kf1 {[%clk 0:00:16.6]} 39... Kf5 {[%clk 0:00:02.3]} 40. Ke2
{[%clk 0:00:16.6]} 40... Nxd5 {[%clk 0:00:01.9]} 41. cxd5 {[%clk 0:00:16]} 41...
Ke5 {[%clk 0:00:02.8]} 42. d6 {[%clk 0:00:14.8]} 42... Kxd6 {[%clk 0:00:03.2]}
43. Kd2 {[%clk 0:00:14.5]} 43... c4 {[%clk 0:00:03.7]} 44. Kc3 {[%clk
0:00:15.4]} 44... Kc5 {[%clk 0:00:04.2]} 45. Kc2 {[%clk 0:00:09.9]} 45... Kxb5
{[%clk 0:00:04.6]} 0-1